fUSD/lending_fUSD_20251212
["ID","MTS","AMOUNT","RATE_DAILY","PERIOD"]
[398298360,1765504232533,-494.87860106,0.00016999,2]
[398298364,1765504237454,-5.12139894,0.00016999,2]
[398298365,1765504237463,-247.45087422,0.00016999,2]
[398298366,1765504237507,-252.54912578,0.00016999,2]
[398298367,1765504237516,-500.0,0.00016999,2]
[398298368,1765504237526,-338.1114739,0.00016999,2]
[398298369,1765504237537,-161.8885261,0.00016999,2]
[398298370,1765504237546,-232.25722975,0.00016999,2]
[398298371,1765504237568,-267.74277025,0.00016999,2]
[398298372,1765504237578,-500.0,0.00016999,2]
[398298373,1765504237587,-55.8713264,0.00016999,2]
[398298438,1765504239454,-594.1286736,0.00016999,2]
[398298439,1765504239464,-500.0,0.00016999,2]
[398298440,1765504239474,-500.0,0.00016999,2]
[398298441,1765504239484,-8225.21740324,0.00017,2]
[398298442,1765504239668,-2315.09651318,0.00017,2]
[398298504,1765504242502,-258.2868301,0.00017,2]
[398298505,1765504242513,-9713.7,0.00017,2]
[398298514,1765504245338,-4345.81127746,0.00017,2]
[398298516,1765504246102,-1395.0,0.00017,2]
[398298527,1765504395387,228.0,9.989e-05,2]
[398298528,1765504395681,228.0,9.989e-05,2]
[398298529,1765504395985,228.0,9.989e-05,2]
[398298530,1765504396310,228.0,9.989e-05,2]
[398298531,1765504396602,228.0,9.989e-05,2]
[398298532,1765504396894,228.0,9.989e-05,2]
[398298533,1765504397307,228.0,9.989e-05,2]
[398298534,1765504397501,228.0,9.989e-05,2]
[398298535,1765504398645,228.0,9.989e-05,2]
[398298536,1765504565761,160.15,0.00013518,2]
[398298537,1765504736697,-2140.923,0.0001666,2]
[398298538,1765504736722,-152.8029578,0.0001666,2]
[398298539,1765504877632,567.93458293,0.000166,2]
[398298540,1765504897052,377.71,0.00013699,2]
[398298541,1765504915872,500.0,0.0001666,2]
[398298542,1765504944541,500.0,0.0001666,2]
[398298543,1765504967951,1259.62,0.00016588,2]
[398298544,1765504969299,1259.62,0.00024882,120]
[398298545,1765504986378,500.0,0.0001666,2]
[398298546,1765505119761,250.0,0.00016588,2]
[398298547,1765505122518,397.0,0.00024111,120]
[398298564,1765505431765,-709.0,0.00016829,2]
[398298565,1765505431776,-491.0,0.00016829,2]
[398298566,1765505431785,-929.2,0.0001683,2]
[398298567,1765505431796,-6942.16097488,0.0001683,2]
[398298568,1765505431927,-312.0,0.0001683,2]
[398298569,1765505432239,-938.58626969,0.0001683,2]
[398298573,1765505437595,-359.68111348,0.0001683,2]
[398298574,1765505437648,-2480.42774565,0.0001683,2]
[398298575,1765505437659,-2003.58187372,0.0001683,2]
[398298576,1765505437702,-11796.61434324,0.0001683,2]
[398298598,1765505440046,-1937.00746864,0.0001683,2]
[398298599,1765505440058,-47.27704968,0.0001683,2]
[398298600,1765505440067,-440.73164981,0.0001683,2]
[398298707,1765505442549,-5382.49092339,0.0001683,2]
[398298708,1765505442560,-11480.64650639,0.0001683,2]
[398298709,1765505442569,-500.0,0.00016897,2]
[398298710,1765505442578,-500.0,0.00016897,2]
[398298711,1765505442587,-311.10588932,0.00016897,2]
[398298712,1765505442810,-188.89411068,0.00016897,2]
[398298713,1765505442820,-500.0,0.00016897,2]
[398298714,1765505442829,-500.0,0.00016897,2]
[398298715,1765505442838,-279.63934418,0.00016897,2]
[398298716,1765505442848,-248.4786,0.00016897,2]
[398298717,1765505442857,-1635.43147371,0.000169,2]
[398298718,1765505442867,-196.64906634,0.000169,2]
[398298719,1765505442876,-936.90428181,0.000169,2]
[398298720,1765505442885,-26.11980716,0.000169,2]
[398298741,1765505683419,2777.31,0.00016438,2]
[398298742,1765505748280,1000.0,0.00016444,2]
[398298743,1765505763466,166.66,0.00015622,2]
[398298744,1765505763752,166.66,0.00015951,2]
[398298745,1765505763934,166.66,0.0001628,2]
[398298746,1765505765425,166.66,0.00016609,2]
[398298747,1765505873690,155.25,0.00016264,2]
[398298748,1765506388758,2038.43566574,0.00015,2]
[398298749,1765506405819,679.98890356,0.0002,30]
[398298750,1765506427678,2137.77020527,0.00015,2]
[398298751,1765506491293,200.0,0.0001634,2]
[398298752,1765506521264,25969.32954606,0.00016,4]
[398298753,1765506547815,191.606743,7.945e-05,2]
[398298754,1765506554123,-151.0,0.00015997,2]
[398298755,1765506554145,-1000.0,0.00015999,3]
[398298756,1765506554165,-4135.89049334,0.00016,4]
[398298757,1765506605181,191.0,0.00023797,120]
[398298758,1765506606432,191.0,0.00024987,120]
[398298771,1765506631734,-203.77304311,0.0001599,2]
[398298772,1765506631743,-210.08895959,0.00015999,2]
[398298773,1765506631840,-89.91104041,0.00015999,2]
[398298774,1765506631850,-441.78465355,0.00015999,2]
[398298775,1765506631861,-715.39403671,0.00015999,2]
[398298879,1765506637744,-42.82130974,0.00015999,2]
[398298880,1765506637754,-299.34574237,0.00015999,2]
[398298881,1765506637765,-0.65425763,0.00015999,2]
[398298882,1765506637774,-467.48989015,0.00015999,2]
[398298883,1765506637783,-13.73875877,0.00015999,2]
[398298884,1765506637815,-147.443742,0.00015999,2]
[398298885,1765506637824,-500.0,0.00015999,2]
[398298886,1765506637834,-463.52070768,0.00015999,2]
[398298887,1765506637843,-500.0,0.00015999,2]
[398298888,1765506637852,-500.0,0.00015999,2]
[398298889,1765506637861,-500.0,0.00015999,2]
[398298890,1765506637872,-500.0,0.00015999,2]
[398298891,1765506637880,-500.0,0.00015999,2]
[398298892,1765506637890,-500.0,0.00015999,2]
[398298893,1765506637900,-117.97482797,0.00015999,2]
[398298894,1765506637911,-382.02517203,0.00015999,2]
[398298895,1765506637920,-500.0,0.00015999,2]
[398298896,1765506637930,-11995.42433858,0.00016,4]
[398298897,1765506637941,-1199.44426882,0.00016,4]
[398298898,1765506637956,-34357.4999975,0.00016,4]
[398298899,1765506637984,-1260.78888652,0.00016,4]
[398298902,1765506638000,-450.58499,0.00016,4]
[398298904,1765506638013,-253.4450449,0.00016,4]
[398298906,1765506638029,-3637.15312271,0.00016,4]
[398298908,1765506638042,-3926.62657098,0.00016,4]
[398298910,1765506638054,-1733.86308309,0.00016,4]
[398298912,1765506638069,-17999.6,0.00016,4]
[398298915,1765506638081,-1688.13785008,0.00016,4]
[398298920,1765506638118,-309.60591375,0.00016,4]
[398299155,1765506640363,-825.45858984,0.00016,4]
[398299157,1765506640377,-2774.07577754,0.00016,4]
[398299160,1765506640387,-818.7518,0.00016,4]
[398299162,1765506640399,-5801.92947249,0.00016,4]
[398299185,1765506640620,-8763.45477203,0.00016,4]
[398299204,1765506640789,-1525817.45981842,0.00016,4]
[398299206,1765506640798,-500.0,0.00016438,2]
[398299208,1765506640808,-500.0,0.00016438,2]
[398299210,1765506640817,-627.96393442,0.00016438,2]
[398299212,1765506640826,-1123.16282683,0.00016512,2]
[398299214,1765506640835,-168.55634256,0.00016612,2]
[398299216,1765506640844,-155.15,0.00016712,2]
[398299218,1765506640854,-1359.6711812,0.000168,2]
[398299221,1765506640864,-311.42638507,0.0001683,2]
[398299222,1765506640873,-3423.33489276,0.0001683,2]
[398299224,1765506640881,-595.9344256,0.0001683,2]
[398299226,1765506640891,-469.64886109,0.0001683,2]
[398299228,1765506640901,-154.4739749,0.00016889,2]
[398299230,1765506640910,-300.0,0.00016891,2]
[398299232,1765506640919,-185.4586845,0.00016892,2]
[398299234,1765506640928,-954.0766923,0.00016892,2]
[398299236,1765506640937,-2026.4416658,0.00016892,2]
[398299238,1765506640946,-156967.9976687,0.00016892,2]
[398299239,1765506640959,-1176.8483119,0.00016892,2]
[398299240,1765506640968,-37361.5157402,0.00016892,2]
[398299241,1765506640977,-606.85,0.00016899,2]
[398299242,1765506640985,-606.85,0.00016899,2]
[398299243,1765506640996,-1000.0,0.00016899,2]
[398299244,1765506641004,-707.01,0.00016899,2]
[398299245,1765506641013,-707.01,0.00016899,2]
[398299246,1765506641023,-300.0,0.00016899,2]
[398299247,1765506641033,-300.0,0.00016899,2]
[398299248,1765506641041,-320220.2221,0.000169,2]
[398299249,1765506641050,-223.1457007,0.000169,2]
[398299250,1765506641058,-1406.30224896,0.000169,2]
[398299251,1765506641067,-999.0,0.00016908,3]
[398299252,1765506641075,-1207.2,0.00016908,2]
[398299253,1765506641085,-166.66,0.00016938,2]
[398299254,1765506641093,-150.0,0.00016973,2]
[398299255,1765506641102,-150.0,0.00016973,2]
[398299256,1765506641110,-150.0,0.00016973,2]
[398299257,1765506641123,-231.33563886,0.00016973,2]
[398299258,1765506641132,-482.5269157,0.00016983,2]
[398299259,1765506641141,-200.0,0.0001699,2]
[398299261,1765506641150,-344.03109866,0.0001699,2]
[398299262,1765506641159,-1712.738,0.00016997,2]
[398299263,1765506641168,-500.0,0.00016999,2]
[398299264,1765506641178,-300.0,0.00016999,2]
[398299265,1765506641186,-300.0,0.00016999,2]
[398299267,1765506641196,-150.0,0.00016999,2]
[398299269,1765506641205,-150.0,0.00016999,2]
[398299271,1765506641214,-150.0,0.00016999,2]
[398299273,1765506641223,-150.0,0.00016999,2]
[398299275,1765506641232,-150.43959407,0.00016999,2]
[398299277,1765506641241,-150.0,0.00016999,2]
[398299279,1765506641250,-151.12439388,0.00016999,2]
[398299281,1765506641259,-150.72693586,0.00016999,2]
[398299283,1765506641269,-150.0,0.00016999,2]
[398299285,1765506641278,-300.0,0.00016999,2]
[398299287,1765506641288,-300.0,0.00016999,2]
[398299289,1765506641298,-897.46,0.00016999,2]
[398299291,1765506641307,-672.38026151,0.00016999,2]
[398299293,1765506641317,-506.77800892,0.00016999,2]
[398299295,1765506641326,-500.0,0.00016999,2]
[398299297,1765506641335,-500.0,0.00016999,2]
[398299299,1765506641344,-509.15965925,0.00016999,2]
[398299301,1765506641353,-500.0,0.00016999,2]
[398299303,1765506641363,-500.0,0.00016999,2]
[398299305,1765506641372,-500.0,0.00016999,2]
[398299307,1765506641381,-500.0,0.00016999,2]
[398299309,1765506641391,-500.0,0.00016999,2]
[398299311,1765506641400,-503.65430536,0.00016999,2]
[398299313,1765506641410,-206.42606613,0.00016999,2]
[398299315,1765506641419,-500.0,0.00016999,2]
[398299317,1765506641428,-150.0,0.00016999,2]
[398299319,1765506641437,-500.0,0.00016999,2]
[398299321,1765506641446,-500.0,0.00016999,2]
[398299323,1765506641454,-150.0,0.00016999,2]
[398299325,1765506641464,-150.0,0.00016999,2]
[398299327,1765506641474,-150.0,0.00016999,2]
[398299329,1765506641482,-500.0,0.00016999,2]
[398299331,1765506641491,-500.0,0.00016999,2]
[398299333,1765506641500,-500.0,0.00016999,2]
[398299335,1765506641509,-515.3906507,0.00016999,2]
[398299337,1765506641518,-500.0,0.00016999,2]
[398299339,1765506641528,-606.85,0.00016999,2]
[398299341,1765506641537,-606.85,0.00016999,2]
[398299343,1765506641546,-606.85,0.00016999,2]
[398299345,1765506641555,-606.85,0.00016999,2]
[398299347,1765506641564,-606.85,0.00016999,2]
[398299349,1765506641573,-500.0,0.00016999,2]
[398299351,1765506641583,-500.0,0.00016999,2]
[398299353,1765506641592,-500.0,0.00016999,2]
[398299355,1765506641601,-500.0,0.00016999,2]
[398299357,1765506641610,-500.0,0.00016999,2]
[398299359,1765506641619,-150.0,0.00016999,2]
[398299360,1765506641628,-500.0,0.00016999,2]
[398299363,1765506641638,-500.0,0.00016999,2]
[398299364,1765506641648,-500.0,0.00016999,2]
[398299366,1765506641656,-500.0,0.00016999,2]
[398299368,1765506641665,-500.0,0.00016999,2]
[398299370,1765506641674,-150.0,0.00016999,2]
[398299372,1765506641683,-150.0,0.00016999,2]
[398299374,1765506641692,-150.0,0.00016999,2]
[398299376,1765506641700,-500.0,0.00016999,2]
[398299378,1765506641710,-500.0,0.00016999,2]
[398299380,1765506641719,-1982.0,0.00016999,2]
[398299382,1765506641727,-707.01,0.00016999,2]
[398299384,1765506641736,-707.01,0.00016999,2]
[398299386,1765506641745,-707.01,0.00016999,2]
[398299388,1765506641754,-707.01,0.00016999,2]
[398299390,1765506641763,-707.01,0.00016999,2]
[398299392,1765506641772,-150.0,0.00016999,2]
[398299394,1765506641781,-1003500.26897835,0.00017,2]
[398299397,1765506641793,-598.09178978,0.00017,2]
[398299606,1765506643800,-1101.40168,0.00017,2]
[398299609,1765506643818,-252.75389837,0.00017,2]
[398299611,1765506643829,-18558.75346291,0.00017,2]
[398299613,1765506643840,-261.24098,0.00017,2]
[398299616,1765506643861,-119484.72533668,0.00017,2]
[398299618,1765506643870,-151.68651408,0.00017,2]
[398299620,1765506643880,-151.0,0.00017,2]
[398299622,1765506643889,-2000.0,0.00017,2]
[398299624,1765506643900,-154.615168,0.00017,2]
[398299627,1765506643910,-151.0,0.00017,2]
[398299629,1765506643919,-820.276652,0.00017,2]
[398299631,1765506643929,-820.276652,0.00017,2]
[398299633,1765506643938,-820.276652,0.00017,2]
[398299634,1765506643950,-820.276652,0.00017,2]
[398299636,1765506643961,-110091.63220147,0.00017,2]
[398299638,1765506643970,-151.0,0.00017,2]
[398299640,1765506643979,-151.0,0.00017,2]
[398299642,1765506643988,-250.0,0.00017,2]
[398299644,1765506643998,-510.0,0.00017119,2]
[398299646,1765506644008,-300.0,0.00017135,2]
[398299648,1765506644017,-352.38159301,0.00017135,2]
[398299650,1765506644030,-300.0,0.00017135,2]
[398299652,1765506644040,-151.3155423,0.00017135,2]
[398299654,1765506644049,-150.0,0.00017136,2]
[398299656,1765506644059,-150.0,0.00017136,2]
[398299658,1765506644073,-150.0,0.00017136,2]
[398299660,1765506644086,-150.0,0.00017136,2]
[398299663,1765506644096,-150.0,0.00017136,2]
[398299665,1765506644104,-500.0,0.00017136,2]
[398299667,1765506644114,-150.0,0.00017136,2]
[398299669,1765506644123,-500.0,0.00017136,2]
[398299671,1765506644131,-500.0,0.00017136,2]
[398299673,1765506644140,-202.73475164,0.00017136,2]
[398299674,1765506644151,-150.0,0.00017136,2]
[398299677,1765506644160,-150.0,0.00017136,2]
[398299679,1765506644169,-500.0,0.00017136,2]
[398299680,1765506644178,-500.0,0.00017136,2]
[398299682,1765506644187,-150.84481935,0.00017136,2]
[398299684,1765506644196,-500.0,0.00017136,2]
[398299686,1765506644205,-500.0,0.00017136,2]
[398299688,1765506644214,-500.0,0.00017136,2]
[398299690,1765506644223,-500.0,0.00017136,2]
[398299692,1765506644232,-500.0,0.00017136,2]
[398299694,1765506644242,-150.0,0.00017136,2]
[398299696,1765506644252,-500.0,0.00017136,2]
[398299698,1765506644261,-500.0,0.00017136,2]
[398299700,1765506644270,-1982.0,0.00017136,2]
[398299702,1765506644279,-150.0,0.00017136,2]
[398299704,1765506644288,-186.75,0.00017184,2]
[398299707,1765506644297,-166.66,0.00017266,2]
[398299708,1765506644307,-300.0,0.00017272,2]
[398299710,1765506644316,-500.0,0.00017273,2]
[398299712,1765506644326,-150.0,0.00017273,2]
[398299714,1765506644335,-150.0,0.00017273,2]
[398299716,1765506644344,-150.0,0.00017273,2]
[398299718,1765506644353,-150.0,0.00017273,2]
[398299720,1765506644362,-189.57060227,0.00017273,2]
[398299722,1765506644372,-202.94294028,0.00017273,2]
[398299724,1765506644381,-281.47947597,0.00017273,2]
[398299726,1765506644390,-500.0,0.00017273,2]
[398299728,1765506644401,-500.0,0.00017273,2]
[398299730,1765506644410,-150.0,0.00017273,2]
[398299732,1765506644419,-154.91184142,0.00017273,2]
[398299734,1765506644429,-500.0,0.00017273,2]
[398299736,1765506644442,-500.0,0.00017273,2]
[398299738,1765506644452,-500.0,0.00017273,2]
[398299740,1765506644461,-500.0,0.00017273,2]
[398299742,1765506644469,-500.0,0.00017273,2]
[398299744,1765506644478,-500.0,0.00017273,2]
[398299746,1765506644488,-500.0,0.00017273,2]
[398299748,1765506644497,-203.91966171,0.00017273,2]
[398299750,1765506644506,-500.0,0.00017273,2]
[398299752,1765506644516,-500.0,0.00017273,2]
[398299754,1765506644524,-1982.0,0.00017273,2]
[398299756,1765506644533,-150.0,0.00017273,2]
[398299758,1765506644542,-897.46,0.00017273,2]
[398299760,1765506644551,-150.0,0.00017391,2]
[398299762,1765506644560,-300.0,0.00017409,2]
[398299764,1765506644569,-252.21225834,0.0001741,2]
[398299766,1765506644578,-150.0,0.0001741,2]
[398299768,1765506644586,-150.0,0.0001741,2]
[398299770,1765506644595,-150.0,0.0001741,2]
[398299772,1765506644604,-500.0,0.0001741,2]
[398299774,1765506644613,-500.0,0.0001741,2]
[398299776,1765506644622,-150.0,0.0001741,2]
[398299778,1765506644631,-500.0,0.0001741,2]
[398299780,1765506644641,-500.0,0.0001741,2]
[398299782,1765506644651,-528.22530125,0.0001741,2]
[398299784,1765506644660,-161.32857974,0.0001741,2]
[398299786,1765506644670,-500.0,0.0001741,2]
[398299788,1765506644679,-500.0,0.0001741,2]
[398299790,1765506644688,-500.0,0.0001741,2]
[398299792,1765506644697,-409.93503154,0.0001741,2]
[398299794,1765506644706,-500.0,0.0001741,2]
[398299796,1765506644716,-1982.0,0.0001741,2]
[398299799,1765506644726,-215.94964223,0.0001741,2]
[398299801,1765506644735,-227.95015052,0.00017429,2]
[398299803,1765506644744,-420.0,0.00017492,2]
[398299805,1765506644753,-200.0,0.00017519,2]
[398299807,1765506644763,-500.0,0.00017547,2]
[398299809,1765506644772,-193.97475595,0.00017547,2]
[398299811,1765506644781,-151.55117543,0.00017547,2]
[398299813,1765506644790,-242.84063133,0.00017547,2]
[398299815,1765506644799,-581.93603546,0.00017547,2]
[398299817,1765506644808,-500.0,0.00017547,2]
[398299819,1765506644816,-253.00859917,0.00017547,2]
[398299821,1765506644825,-500.0,0.00017547,2]
[398299823,1765506644834,-500.0,0.00017547,2]
[398299825,1765506644843,-500.0,0.00017547,2]
[398299826,1765506644852,-500.0,0.00017547,2]
[398299829,1765506644861,-500.0,0.00017547,2]
[398299831,1765506644871,-500.0,0.00017547,2]
[398299833,1765506644880,-1982.0,0.00017547,2]
[398299835,1765506644889,-897.46,0.00017547,2]
[398299837,1765506644899,-1680.0,0.0001758,2]
[398299839,1765506644908,-194.65189453,0.00017599,2]
[398299841,1765506644916,-500.0,0.00017684,2]
[398299843,1765506644926,-500.0,0.00017684,2]
[398299845,1765506644934,-500.0,0.00017684,2]
[398299847,1765506644944,-500.0,0.00017684,2]
[398299848,1765506644957,-500.0,0.00017684,2]
[398299850,1765506644966,-500.0,0.00017684,2]
[398299852,1765506644975,-500.0,0.00017684,2]
[398299855,1765506644985,-1982.0,0.00017684,2]
[398299857,1765506644997,-2751.0,0.00017765,2]
[398299859,1765506645007,-151.0,0.00017765,2]
[398299861,1765506645016,-820.276652,0.00017765,2]
[398299863,1765506645029,-820.276652,0.00017765,2]
[398299865,1765506645038,-820.276652,0.00017765,2]
[398299867,1765506645047,-820.276652,0.00017765,2]
[398299869,1765506645057,-150.0,0.00017808,2]
[398299870,1765506645066,-501.64059843,0.00017821,2]
[398299872,1765506645076,-500.0,0.00017821,2]
[398299874,1765506645085,-500.0,0.00017821,2]
[398299877,1765506645096,-500.0,0.00017821,2]
[398299879,1765506645107,-500.0,0.00017821,2]
[398299881,1765506645117,-504.68602936,0.00017821,2]
[398299883,1765506645127,-500.0,0.00017821,2]
[398299885,1765506645136,-193.29978878,0.00017821,2]
[398299887,1765506645146,-1982.0,0.00017821,2]
[398299889,1765506645155,-897.46,0.00017821,2]
[398299891,1765506645165,-491.27,0.00017839,2]
[398299893,1765506645174,-500.0,0.0001788,2]
[398299895,1765506645183,-500.0,0.00017881,2]
[398299897,1765506645192,-500.0,0.00017882,2]
[398299899,1765506645201,-500.0,0.00017883,2]
[398299901,1765506645211,-151.0,0.00017883,2]
[398299903,1765506645221,-284.95362198,0.00017884,2]
[398299905,1765506645234,-215.04637802,0.00017884,2]
[398299907,1765506645244,-500.0,0.00017885,2]
[398299909,1765506645253,-500.0,0.00017886,2]
[398299911,1765506645262,-500.0,0.00017887,2]
[398299913,1765506645272,-500.0,0.00017888,2]
[398299915,1765506645282,-500.0,0.00017889,2]
[398299917,1765506645291,-500.0,0.0001789,2]
[398299919,1765506645301,-500.0,0.00017891,2]
[398299921,1765506645310,-500.0,0.00017892,2]
[398299923,1765506645319,-500.0,0.00017893,2]
[398299925,1765506645329,-500.0,0.00017894,2]
[398299927,1765506645338,-500.0,0.00017895,2]
[398299929,1765506645347,-500.0,0.00017896,2]
[398299931,1765506645357,-500.0,0.00017897,2]
[398299933,1765506645366,-500.0,0.00017898,2]
[398299935,1765506645376,-500.0,0.00017899,2]
[398299937,1765506645385,-500.0,0.000179,2]
[398299939,1765506645396,-417.24945333,0.000179,2]
[398299941,1765506645405,-500.0,0.00017901,2]
[398299943,1765506645415,-500.0,0.00017902,2]
[398299945,1765506645424,-810.439092,0.00017903,2]
[398299947,1765506645433,-167.45,0.00017921,2]
[398299949,1765506645442,-500.0,0.00017958,2]
[398299951,1765506645451,-500.0,0.00017958,2]
[398299953,1765506645461,-500.0,0.00017958,2]
[398299955,1765506645471,-500.0,0.00017958,2]
[398299957,1765506645480,-500.0,0.00017958,2]
[398299959,1765506645489,-1982.0,0.00017958,2]
[398299961,1765506645498,-355.72899786,0.00017998,2]
[398299963,1765506645507,-300.0,0.00017998,2]
[398299967,1765506645516,-300.0,0.00017998,2]
[398299970,1765506645525,-300.0,0.00017999,2]
[398299973,1765506645535,-606.85,0.00017999,2]
[398299976,1765506645544,-606.85,0.00017999,2]
[398299979,1765506645553,-606.85,0.00017999,2]
[398299981,1765506645562,-606.85,0.00017999,2]
[398299983,1765506645571,-606.85,0.00017999,2]
[398299985,1765506645580,-606.85,0.00017999,2]
[398299987,1765506645589,-500.0,0.00017999,2]
[398299989,1765506645598,-500.0,0.00017999,2]
[398299991,1765506645607,-500.0,0.00017999,2]
[398299993,1765506645617,-500.0,0.00017999,2]
[398299996,1765506645626,-476.9099578,0.00017999,2]
[398299998,1765506645635,-707.01,0.00017999,2]
[398300000,1765506645644,-707.01,0.00017999,2]
[398300002,1765506645653,-707.01,0.00017999,2]
[398300004,1765506645662,-707.01,0.00017999,2]
[398300006,1765506645672,-707.01,0.00017999,2]
[398300008,1765506645681,-707.01,0.00017999,2]
[398300010,1765506645690,-413.0,0.00018,2]
[398300012,1765506645699,-24962.63039012,0.00018,2]
[398300015,1765506645719,-15807.48454344,0.00018,2]
[398300017,1765506645729,-3865.14,0.00018,2]
[398300165,1765506647168,-205.07384367,0.00017547,2]
[398300167,1765506647177,-1776.8163827,0.00018,2]
[398300169,1765506647187,-17099.25766968,0.00018,2]
[398300171,1765506647198,-1862.09700592,0.00018,2]
[398300855,1765507610115,-401.09050436,0.00015997,2]
[398300856,1765507661409,347.97910722,0.00013699,2]
[398300857,1765507661434,10.84089278,0.00013699,2]
[398300877,1765507831894,-653.70972726,0.00015999,3]
[398300879,1765507831905,-297.05507805,0.00015999,3]
[398300881,1765507831917,-49.23519469,0.00015999,3]
[398300883,1765507831927,-258.3901,0.00016692,2]
[398300885,1765507831936,-1.64238731,0.00016782,2]
[398300887,1765507831948,-273.4100104,0.00016782,2]
[398300888,1765507831958,-300.0,0.00016789,2]
[398300889,1765507831967,-157.60687325,0.00016789,2]
[398300890,1765507832023,-390.94061316,0.00016789,2]
[398300891,1765507832058,-368.0,0.00016789,2]
[398300892,1765507832069,-185.45251359,0.00016789,2]
[398300893,1765507832078,-137.14070029,0.0001679,2]
[398300913,1765507837986,-1062.85929971,0.0001679,2]
[398300914,1765507837995,-550.0,0.0001679,2]
[398300915,1765507838005,-1807.47786259,0.00016791,5]
[398300916,1765507838014,-623.92246801,0.00016791,2]
[398300917,1765507838023,-500.0,0.00016791,2]
[398300918,1765507838033,-500.0,0.00016791,2]
[398300919,1765507838042,-500.0,0.00016791,2]
[398300920,1765507838051,-500.0,0.00016791,2]
[398300921,1765507838061,-603.6,0.00016794,2]
[398300922,1765507838071,-250.0,0.00016845,2]
[398300923,1765507838080,-1000.0,0.00016907,3]
[398300925,1765507838090,-200.0,0.00016973,2]
[398300927,1765507838100,-361.93,0.00017208,2]
[398300928,1765507838109,-150.0,0.00017238,2]
[398300930,1765507838119,-2000.0,0.000173,2]
[398300932,1765507838129,-166.04,0.0001743,2]
[398300933,1765507838138,-200.0,0.00017485,2]
[398300934,1765507838148,-673.30352131,0.0001764,2]
[398300935,1765507838158,-1223.70406308,0.00017789,2]
[398300936,1765507838168,-13625.97296477,0.0001783,2]
[398300937,1765507838178,-159.87771672,0.00017889,2]
[398300938,1765507838189,-1272.781,0.00017889,2]
[398300940,1765507838199,-706.0,0.00017898,2]
[398300942,1765507838208,-1471.88832633,0.000179,2]
[398300944,1765507838218,-202.8597279,0.000179,2]
[398300946,1765507838227,-500.0,0.00017979,2]
[398300948,1765507838237,-500.0,0.00017979,2]
[398300949,1765507838246,-270.21377108,0.00017979,2]
[398300951,1765507838256,-571.65515559,0.00017979,2]
[398300953,1765507838266,-500.0,0.00017979,2]
[398300955,1765507838276,-500.0,0.00017979,2]
[398300957,1765507838290,-500.0,0.00017979,2]
[398300959,1765507838311,-500.0,0.00017979,2]
[398300961,1765507838326,-500.0,0.00017979,2]
[398300986,1765507838627,-500.0,0.00017979,2]
[398300988,1765507838639,-33654.4041747,0.0001798,2]
[398300990,1765507838649,-3511.2827684,0.00017988,2]
[398300992,1765507838660,-300.0,0.00017999,2]
[398300994,1765507838670,-150.0,0.00017999,2]
[398300995,1765507838681,-150.0,0.00017999,2]
[398300997,1765507838691,-150.0,0.00017999,2]
[398300999,1765507838702,-1321.0,0.00017999,2]
[398301001,1765507838712,-150.0,0.00017999,2]
[398301003,1765507838722,-150.0,0.00017999,2]
[398301005,1765507838732,-150.0,0.00017999,2]